[Event "55th Iranian-ch Men Final 2022"]
[Site "Iran"]
[Date "2022.06.23"]
[Round "12.1"]
[White "Mosadeghpour, Masoud"]
[Black "Daneshvar, Bardiya"]
[Result "0-1"]
[ECO "A11"]
[WhiteElo "2474"]
[BlackElo "2486"]
[Annotator "TA"]
[PlyCount "90"]
[EventDate "2022.06.15"]
[EventType "tourn"]
[EventCountry "IRI"]
[SourceTitle "playchess.com"]
[Source "ChessBase"]
[SourceQuality "1"]
[TimeControl "40/5400+30:1800+30"]

{[%evp 11,90,9,12,0,13,0,2,4,50,25,25,22,37,37,46,32,32,40,30,27,35,8,9,20,25,16,18,-10,0,0,0,0,0,0,0,0,0,-45,-30,-30,0,-51,-7,-5,-6,0,0,0,0,-82,-68,-345,-356,-339,-359,-381,-372,-370,-357,-396,-391,-414,-418,-421,-412,-404,-352,-773,-594,-1092,-1077,-1082,-1075,-1052,-1037,-945,-928,-1183,-1115,-921,-794]} 1. Nf3 {[%emt 0:06:10]} d5 {[%emt 0:01:17]} 2. g3 {[%emt 0:00:56]} c6 {[%emt 0:00:25]} 3. Bg2 {[%emt 0:00:13]} Bg4 {[%emt 0:00:15]} 4. c4 {[%emt 0:00:31]} e6 {[%emt 0:01:25]} 5. cxd5 {[%emt 0:00:38]} exd5 {[%emt 0:01:17]} 6. O-O {[%emt 0:00:23]} Nd7 {[%emt 0:00:29]} 7. h3 {[%emt 0:00:14] A11: English Opening: 1...c6.} Bh5 {[%emt 0:01:38]} 8. d3 {[%emt 0:00:22]} Bc5 {[%emt 0:06:25]} 9. e4 {[%emt 0:02:25] The position is equal.} Ne7 {[%emt 0:04:11]} (9... dxe4 $11 10. dxe4 Ngf6) 10. Nc3 {[%emt 0:03:51]} O-O {[%emt 0:04:32]} 11. exd5 {[%emt 0:05:04]} Nxd5 {[%emt 0:04:51]} 12. Nxd5 {[%emt 0:01:52]} cxd5 {[%emt 0:00:13]} 13. Qb3 {[%emt 0:00:35][%csl LRb7,LRd5] [#]} Bb6 $146 {[%emt 0:06:06]} ({Predecessor:} 13... Qb6 14. Qxd5 Nf6 15. Qb3 Rfd8 16. Qxb6 Bxb6 17. g4 Bg6 18. Ne5 Bxd3 19. Nxd3 Rxd3 20. Bxb7 {1-0 (51) Sjugirov,S (2650)-Kuzubov,Y (2699) Riadh 2017}) 14. Qxd5 {[%emt 0:02:35]} Nf6 {[%emt 0:01:43]} 15. Qb5 {[%emt 0:06:50]} Rc8 {[%emt 0:06:07]} 16. Be3 {[%emt 0:09:37]} (16. d4 $5) 16... Bxe3 {[%emt 0:03:47]} 17. fxe3 {[%emt 0:00:15]} Qd6 {[%emt 0:05:31]} 18. g4 {[%emt 0:28:46]} Bg6 {[%emt 0:00:36]} 19. d4 {[%emt 0:01:50]} (19. Ne5 $2 a6 20. Qa5 b6 21. Nxf7 Bxf7 $19) 19... a6 {[%emt 0:08:09]} 20. Qe5 {[%emt 0:04:11]} Qb4 {[%emt 0:03:43]} 21. Nh4 {[%emt 0:01:08]} Rce8 {[%emt 0:05:54]} 22. Qf4 {[%emt 0:02:34]} Qxb2 {[%emt 0:01:13]} 23. Nxg6 {[%emt 0:01:32]} hxg6 {[%emt 0:01:09]} 24. g5 {[%emt 0:05:53]} Nh5 {[%emt 0:01:45][%cal Bf6h5,Bh5g3,Bg3f1][%mdl 32]} 25. Qf2 {[%emt 0:01:42]} Qa3 {[%emt 0:02:16]} 26. Rae1 {[%emt 0:01:59]} ({But not} 26. Bxb7 Rxe3 27. Bg2 Rc3 $17) ({White should try} 26. e4 $1 $11) 26... Qe7 {[%emt 0:02:15]} (26... Qa5 $5 {[%cal Ra5g5]}) 27. h4 $132 {[%emt 0:02:06][%mdl 2048] White is not holding back} f6 {[%emt 0:05:53][%cal Bf7f6,Bf6f5][%mdl 32]} 28. Qc2 {[%emt 0:00:28]} Kh7 {[%emt 0:02:09]} 29. Bf3 {[%emt 0:02:10] Bxh5 is the strong threat.} Ng3 {[%emt 0:02:27]} 30. h5 {[%emt 0:04:43] [#]} (30. Rf2 $11 {remains equal.}) 30... f5 $1 $17 {[%emt 0:02:09]} (30... Nxf1 31. hxg6+ Kg8 32. Bd5+ Rf7 33. gxf7+ Qxf7 34. Bxf7+ $18) 31. Qg2 $2 {[%emt 0:03:10][%mdl 8192] Now White is beyond hope.} (31. hxg6+ $15 Kxg6 32. Rf2) 31... Nxf1 $19 {[%emt 0:02:12]} 32. Kxf1 {[%emt 0:00:36]} gxh5 {[%emt 0:01:07]} 33. Bxh5 {[%emt 0:00:59]} g6 {[%emt 0:00:12]} 34. Bf3 {[%emt 0:00:29]} Kg7 {[%emt 0:00:17]} 35. d5 {[%emt 0:00:34]} Qe5 {[%emt 0:01:21] Prevents Qb2.} 36. Qd2 {[%emt 0:00:36]} b5 {[%emt 0:00:48]} 37. d6 {[%emt 0:00:25]} Re6 {[%emt 0:00:13]} 38. Rd1 {[%emt 0:00:36]} Qxe3 {[%emt 0:01:21]} 39. Qd5 {[%emt 0:00:29] [#]} (39. Qxe3 Rxe3 40. Bb7) 39... Rd8 {[%emt 0:02:33] Black is clearly winning.} 40. Rd3 {[%emt 0:00:00]} Qe1+ {[%emt 0:00:00]} 41. Kg2 {[%emt 0:00:25]} Rdxd6 {[%emt 0:04:41]} 42. Qxd6 {[%emt 0:02:43]} Rxd6 {[%emt 0:00:11]} 43. Rxd6 {[%emt 0:00:02]} Qe7 {[%emt 0:00:29]} 44. Rxa6 {[%emt 0:00:31]} Qxg5+ {[%emt 0:00:04]} 45. Kf2 {[%emt 0:00:29]} Qf4 {[%emt 0:00:14] Weighted Error Value: White=0.52/Black=0.08 (flawless)} 0-1

[Event "55th Iranian-ch Men Final 2022"]
[Site "Iran"]
[Date "2022.06.23"]
[Round "12.2"]
[White "Daghli, Arash"]
[Black "Khamisi, S Jafar"]
[Result "1/2-1/2"]
[ECO "C50"]
[WhiteElo "2441"]
[BlackElo "2118"]
[Annotator "TA"]
[PlyCount "102"]
[EventDate "2022.06.15"]
[EventType "tourn"]
[EventCountry "IRI"]
[SourceTitle "playchess.com"]
[Source "ChessBase"]
[SourceQuality "1"]
[TimeControl "40/5400+30:1800+30"]

{[%evp 9,102,22,20,20,26,21,31,12,23,14,13,12,25,11,19,13,37,23,21,3,8,8,29,26,27,0,0,-8,34,35,36,35,35,35,29,32,37,29,39,37,71,69,67,27,24,19,94,55,78,73,95,81,92,82,129,121,123,79,154,154,152,100,93,93,164,0,0,0,0,0,0,-8,-14,-8,-8,-8,-10,-34,-29,-29,-29,-29,-29,-29,-29,-29,0,0,0,0,0,0,0,0,0]} 1. e4 {[%emt 0:05:25]} e5 {[%emt 0:00:12]} 2. Nf3 {[%emt 0:00:08]} Nc6 {[%emt 0:00:15]} 3. Bc4 {[%emt 0:00:08]} Bc5 {[%emt 0:00:12]} 4. d3 {[%emt 0:00:07]} Nf6 {[%emt 0:00:35]} 5. Bg5 {[%emt 0:00:09]} Be7 {[%emt 0:02:41]} 6. O-O {[%emt 0:02:39] C50: Hungarian Defence and Giuoco Pianissimo.} O-O {[%emt 0:00:38]} 7. a4 {[%emt 0:00:47][%cal Ba2a4,Ba4a5][%mdl 32]} d6 {[%emt 0:00:35]} 8. Nc3 {[%emt 0:01:44] [#] White is slightly better.} h6 $146 {[%emt 0:01:21]} ({Predecessor:} 8... Kh8 9. h3 Be6 10. Re1 a6 11. Rb1 h6 12. Bxf6 Bxf6 13. Nd5 Rb8 14. b4 Bxd5 15. exd5 {½-½ (37) Kogan,A (2569)-Roiz,M (2680) Helsingor 2008}) 9. Bxf6 {[%emt 0:01:44]} Bxf6 {[%emt 0:00:09]} 10. Nd5 {[%emt 0:00:21]} g6 {[%emt 0:02:20]} 11. a5 {[%emt 0:01:20]} Bg7 {[%emt 0:01:37]} 12. c3 {[%emt 0:07:27]} Be6 {[%emt 0:10:07]} 13. Qb3 {[%emt 0:11:29]} Rb8 {[%emt 0:03:50]} 14. h3 {[%emt 0:05:33]} Kh7 {[%emt 0:12:16]} 15. Ne3 {[%emt 0:08:28]} Bxc4 {[%emt 0:04:52]} 16. Qxc4 {[%emt 0:51:01]} Qd7 {[%emt 0:56:50]} 17. d4 {[%emt 0:00:00]} exd4 {[%emt 0:00:00]} 18. cxd4 {[%emt 0:00:00]} Ne7 {[%emt 0:00:00]} 19. Rac1 {[%emt 0:00:00]} c6 {[%emt 0:00:00]} 20. b4 {[%emt 0:00:00]} Rbc8 {[%emt 0:00:00]} 21. Qb3 {[%emt 0:00:00]} Qe6 {[%emt 0:00:00]} 22. Qd3 {[%emt 0:00:00]} Qd7 {[%emt 0:00:00]} 23. Rfd1 {[%emt 0:00:00]} d5 {[%emt 0:00:41]} 24. e5 {[%emt 0:00:00]} f6 {[%emt 0:01:15]} 25. exf6 {[%emt 0:00:00]} Bxf6 {[%emt 0:00:09]} 26. Ng4 {[%emt 0:00:00]} a6 $1 {[%emt 0:00:56]} 27. Re1 {[%emt 0:00:00]} Qf5 {[%emt 0:01:35]} (27... Nf5 $11 {remains equal.}) 28. Qd2 {[%emt 0:00:00] White is more active.} Ng8 {[%emt 0:00:16]} 29. Nxf6+ {[%emt 0:00:00]} Rxf6 {[%emt 0:00:29]} 30. Re5 {[%emt 0:00:00]} Qd7 {[%emt 0:00:38]} 31. Rce1 {[%emt 0:00:00]} Rcf8 {[%emt 0:00:17]} (31... Rc7 $142) 32. R5e3 $16 {[%emt 0:00:00]} Qd6 {[%emt 0:00:30]} 33. R1e2 {[%emt 0:00:00]} Kg7 {[%emt 0:00:58]} (33... R6f7 $142) 34. Ne5 {[%emt 0:00:00]} Kh7 {[%emt 0:00:40]} 35. Ng4 {[%emt 0:00:00]} (35. Nd3 $142) 35... R6f7 {[%emt 0:00:25]} 36. g3 {[%emt 0:01:40]} h5 {[%emt 0:00:33]} (36... Rg7 $16 {was called for.}) 37. Re6 $2 {[%emt 0:00:01]} ({Better is} 37. Ne5 $18) 37... Qd7 $11 {[%emt 0:00:29]} 38. Nh2 {[%emt 0:08:31][%cal Bg4h2,Bh2f3,Bf3e5][%mdl 32]} Rxf2 $1 {[%emt 0:00:10]} 39. Rxf2 {[%emt 0:00:45]} Rxf2 {[%emt 0:00:06]} 40. Kxf2 {[%emt 0:00:00]} Qxe6 {[%emt 0:00:00][%mdl 4096] Endgame KQN-KQN} 41. Nf3 $132 {[%emt 0:00:34][%mdl 2048] [#] Ng5+ would kill now. White has counterplay} Kg7 {[%emt 0:04:32]} 42. Qf4 {[%emt 0:00:20]} Qe7 {[%emt 0:05:21]} 43. Ne5 {[%emt 0:04:28]} Nf6 {[%emt 0:00:38]} 44. Nd3 {[%emt 0:01:33]} Ne4+ {[%emt 0:02:49]} 45. Kg2 {[%emt 0:03:00]} Qf6 {[%emt 0:13:20]} (45... Kg8 {seems wilder.} 46. Qh6 Qf7 47. Nf4 g5) 46. Qxf6+ {[%emt 0:07:00]} Kxf6 {[%emt 0:00:08]} 47. Nc5 $1 {[%emt 0:00:06]} Nxc5 {[%emt 0:01:47]} 48. bxc5 {[%emt 0:00:02] KP-KP. The position is equal.} Kf5 {[%emt 0:00:39] [#] ( -> ...Ke4)} 49. Kf3 {[%emt 0:00:05]} g5 {[%emt 0:00:04]} (49... Kg5 $5) 50. g4+ {[%emt 0:00:04]} hxg4+ {[%emt 0:00:04]} 51. hxg4+ {[%emt 0:00:06]} Kf6 {[%emt 0:08:01] Weighted Error Value: White=0.10 (very precise) /Black=0.13 (very precise)} 1/2-1/2

[Event "55th Iranian-ch Men Final 2022"]
[Site "Iran"]
[Date "2022.06.23"]
[Round "12.3"]
[White "Poormosavi, Seyed Kian"]
[Black "Darini, Pouria"]
[Result "1/2-1/2"]
[ECO "B30"]
[WhiteElo "2358"]
[BlackElo "2431"]
[Annotator "TA"]
[PlyCount "108"]
[EventDate "2022.06.15"]
[EventType "tourn"]
[EventCountry "IRI"]
[SourceTitle "playchess.com"]
[Source "ChessBase"]
[SourceQuality "1"]
[TimeControl "40/5400+30:1800+30"]

{[%evp 9,108,13,60,48,42,20,14,22,13,18,13,16,12,18,6,-11,-4,-12,-8,-10,-11,-12,0,-31,-13,-26,-30,-40,-24,-115,-124,-112,-35,-36,-29,-35,-28,-35,-17,-32,-34,-42,-31,-85,-85,-150,-91,-83,-72,-70,-53,-64,-64,-118,-66,-126,-112,-157,0,8,29,26,11,10,22,21,26,25,25,23,38,19,19,13,16,8,8,0,0,0,0,0,0,0,0,0,0,0,0,-17,0,0,0,0,0,0,0,0,0,0,0]} 1. e4 {[%emt 0:06:38]} c5 {[%emt 0:00:06]} 2. Nf3 {[%emt 0:00:11]} Nc6 {[%emt 0:00:08]} 3. Bb5 {[%emt 0:00:10]} e6 {[%emt 0:00:09]} 4. O-O {[%emt 0:00:13]} Nge7 {[%emt 0:00:08]} 5. Re1 {[%emt 0:00:11]} b6 {[%emt 0:01:34]} (5... a6 $11 {should be considered.} 6. Bxc6 Nxc6) 6. c3 $14 {[%emt 0:05:50] B30: Sicilian: 2...Nc6 3 Bb5, lines without ...g6.} a6 {[%emt 0:00:43]} 7. Bf1 {[%emt 0:00:07]} d5 {[%emt 0:00:11]} 8. exd5 {[%emt 0:00:55]} Nxd5 {[%emt 0:00:11]} 9. d4 {[%emt 0:01:38]} cxd4 {[%emt 0:00:24]} 10. Nxd4 {[%emt 0:03:27]} Bb7 {[%emt 0:00:30]} 11. Nxc6 {[%emt 0:05:48]} Bxc6 {[%emt 0:00:12]} 12. c4 {[%emt 0:00:24]} Nf6 {[%emt 0:07:26] [#]} 13. Qxd8+ $146 {[%emt 0:08:27]} ({Predecessor:} 13. Be3 Bc5 14. Bxc5 bxc5 15. Nd2 a5 16. Be2 a4 17. Qc2 O-O 18. Bf3 Qb6 19. Bxc6 Qxc6 {½-½ (40) Kryvoruchko,Y (2685)-Moiseenko,A (2597) Kharkov 2021}) 13... Rxd8 {[%emt 0:00:24]} 14. Be3 {[%emt 0:07:14]} Bc5 {[%emt 0:01:46]} 15. Nc3 {[%emt 0:00:43]} Ke7 {[%emt 0:09:02]} 16. Rad1 {[%emt 0:14:10]} Rxd1 {[%emt 0:04:36]} 17. Nxd1 {[%emt 0:05:39]} Rd8 {[%emt 0:09:22]} 18. Nc3 {[%emt 0:08:36]} a5 {[%emt 0:14:52]} 19. Rd1 {[%emt 0:04:44]} (19. f3 $11 {remains equal.}) 19... Bxe3 $17 {[%emt 0:04:12]} 20. fxe3 {[%emt 0:00:10]} Rc8 {[%emt 0:00:07]} (20... Rxd1 $17 21. Nxd1 Kd6) 21. Be2 $15 {[%emt 0:01:17]} Nd7 {[%emt 0:04:06]} 22. b3 {[%emt 0:02:16]} Ne5 {[%emt 0:00:02]} 23. Kf2 {[%emt 0:03:12]} f5 {[%emt 0:00:02]} 24. Bf3 {[%emt 0:05:44]} Bd7 {[%emt 0:03:19]} 25. h4 {[%emt 0:00:55]} h6 {[%emt 0:02:05]} 26. a4 {[%emt 0:02:36]} (26. e4 $15) 26... g5 $17 {[%emt 0:03:46]} 27. Ne2 {[%emt 0:02:07]} (27. Rd4 $142) 27... Rg8 {[%emt 0:08:31]} ({Not} 27... gxh4 28. Nf4 $11) (27... g4 $142 $1 {[%cal Rg4f3]} 28. Bb7 Rc7) 28. hxg5 {[%emt 0:00:54]} hxg5 {[%emt 0:00:15]} 29. Nd4 {[%emt 0:02:00]} Rh8 {[%emt 0:01:41]} 30. Bb7 {[%emt 0:03:14]} Be8 {[%emt 0:10:09]} 31. Kg1 {[%emt 0:02:17]} (31. Bf3 $15) 31... Bh5 {[%emt 0:08:06]} ({Better is} 31... g4 $1 $17 32. g3 Nd7) 32. Rd2 {[%emt 0:00:14] [#]} ({White should try} 32. Bf3 $15) 32... Rd8 $1 {[%emt 0:01:05]} 33. Rc2 {[%emt 0:01:42] [#]} Rd7 $2 {[%emt 0:01:43]} (33... f4 $1 $17 {[%cal Rf4e3]} 34. exf4 gxf4) 34. Bc8 $1 $11 {[%emt 0:00:20]} Rd6 {[%emt 0:04:49]} 35. c5 {[%emt 0:00:16]} bxc5 {[%emt 0:00:01]} 36. Rxc5 {[%emt 0:00:05]} Ng4 {[%emt 0:00:02]} 37. Bxe6 {[%emt 0:02:04]} Nxe3 {[%emt 0:00:41]} 38. Nxf5+ {[%emt 0:00:56]} Nxf5 {[%emt 0:00:06]} 39. Bxf5 {[%emt 0:00:03][%mdl 4096] Endgame KRB-KRB} Bf7 {[%emt 0:01:54]} 40. Rxa5 {[%emt 0:00:00] Strongly threatening Rb5.} Bxb3 {[%emt 0:00:00] The position is equal.} 41. Ra7+ {[%emt 0:07:54]} Kf6 {[%emt 0:00:16]} 42. Be4 {[%emt 0:01:15]} Ke5 {[%emt 0:08:58]} 43. Ba8 {[%emt 0:05:16]} Kf4 {[%emt 0:01:22]} 44. Rb7 {[%emt 0:00:49]} Bxa4 {[%emt 0:02:29]} ({Don't do} 44... Rd1+ 45. Kh2 Be6 46. a5 $16) 45. Rb4+ {[%emt 0:03:51]} Kg3 {[%emt 0:00:07][%cal Rd6d1]} 46. Bf3 {[%emt 0:00:06][%csl Gf3][%cal Rb4g4] Inhibits Rd1+.} Bd7 {[%emt 0:00:04] Inhibits Rg4+.} 47. Be2 $1 {[%emt 0:04:08]} Rd2 {[%emt 0:01:43]} 48. Rb3+ {[%emt 0:01:27]} Kf4 {[%emt 0:03:16]} (48... Kh4 $5 {[%cal Rd2e2]} 49. Kf2 g4 $11) 49. Rd3 {[%emt 0:00:54]} Rxe2 {[%emt 0:00:44]} 50. Rxd7 {[%emt 0:00:07]} g4 {[%emt 0:00:08]} 51. Rd4+ {[%emt 0:00:41]} Kg3 {[%emt 0:00:11][%cal Re2e1]} 52. Rd3+ {[%emt 0:00:04]} Kf4 {[%emt 0:00:07]} 53. Rd4+ $1 {[%emt 0:00:03]} Kg3 {[%emt 0:00:05][%cal Re2e1]} 54. Rd3+ {[%emt 0:00:02]} Kf4 {[%emt 0:19:34] Weighted Error Value: White=0.13 (very precise) /Black=0.17 (very precise)} 1/2-1/2

[Event "55th Iranian-ch Men Final 2022"]
[Site "Iran"]
[Date "2022.06.23"]
[Round "12.4"]
[White "Naderi, Abdollah"]
[Black "Atakhan, Abtin"]
[Result "1/2-1/2"]
[ECO "E04"]
[WhiteElo "2050"]
[BlackElo "2358"]
[Annotator "TA"]
[PlyCount "82"]
[EventDate "2022.06.15"]
[EventType "tourn"]
[EventCountry "IRI"]
[SourceTitle "playchess.com"]
[Source "ChessBase"]
[SourceQuality "1"]
[TimeControl "40/5400+30:1800+30"]

{[%evp 13,82,9,10,-12,-18,-10,-18,-32,-22,-29,-20,-59,-44,-49,-66,-43,-43,-56,74,67,78,71,230,227,221,215,287,117,121,120,190,178,295,168,158,157,214,163,172,129,203,158,279,241,223,231,295,229,301,266,247,260,250,260,260,254,529,513,737,737,662,53,60,0,0,0,0,0,0,0,0]} 1. d4 {[%emt 0:04:47]} Nf6 {[%emt 0:00:20]} 2. Nf3 {[%emt 0:00:12]} d5 {[%emt 0:00:32]} 3. c4 {[%emt 0:00:26]} e6 {[%emt 0:00:38]} 4. g3 {[%emt 0:00:16]} dxc4 {[%emt 0:04:07]} 5. Bg2 {[%emt 0:00:40]} a6 {[%emt 0:00:18]} 6. a4 {[%emt 0:00:31]} Nc6 {[%emt 0:10:47]} 7. O-O {[%emt 0:02:09]} Rb8 {[%emt 0:03:17]} 8. Bg5 {[%emt 0:16:21] E04: Open Catalan: 5 Nf3.} h6 {[%emt 0:07:39]} 9. Bxf6 {[%emt 0:01:07]} Qxf6 {[%emt 0:00:31]} 10. Nc3 {[%emt 0:07:18]} Bb4 {[%emt 0:01:31]} 11. Ne4 {[%emt 0:05:04]} Qe7 {[%emt 0:07:20] [#]} 12. Rc1 $146 {[%emt 0:02:45]} ({Predecessor:} 12. Qc2 Na5 13. Ne5 O-O 14. Nxc4 Nxc4 15. Qxc4 c6 16. Rfd1 Bd7 17. Rac1 Rfd8 18. Nc5 {1-0 (65) Kalavannan,K (2324)-Sedykh,M (2119) Chess.com INT 2020}) 12... Na5 {[%emt 0:01:54]} 13. Ne5 {[%emt 0:08:33]} b5 {[%emt 0:01:38]} 14. axb5 {[%emt 0:03:27]} axb5 {[%emt 0:00:37]} 15. b3 {[%emt 0:01:02][%cal Bb2b3,Bb3c4,Bc4c5][%mdl 32]} Ba3 {[%emt 0:16:49] [#]} (15... Nxb3 $2 16. Nc6 $18) (15... cxb3 $15 {keeps the upper hand.} 16. Nc5 b2) 16. Ra1 $1 $16 {[%emt 0:07:42] White is more active.} O-O {[%emt 0:35:05]} (16... Nxb3 $2 17. Nc6 $18) 17. bxc4 {[%emt 0:08:31]} c6 {[%emt 0:00:16]} (17... bxc4 $16 {was worth a try.} 18. Qa4 Bb4) 18. c5 $18 {[%emt 0:09:22]} b4 {[%emt 0:00:01]} 19. Nd6 {[%emt 0:00:54]} Ba6 {[%emt 0:02:54]} 20. Nxc6 {[%emt 0:09:01]} (20. Bxc6 $18 {is more deadly.} Qc7 21. Be4) 20... Nxc6 $16 {[%emt 0:00:05]} 21. Bxc6 {[%emt 0:00:03]} e5 {[%emt 0:01:05]} (21... Rfd8 $16) 22. Re1 {[%emt 0:04:56]} (22. d5 $6 Qa7 $14) 22... Qa7 {[%emt 0:02:21]} (22... Rbd8 $142 23. Ra2 (23. Qa4 Bc8 $18) 23... Rxd6 24. cxd6 Qxd6) 23. dxe5 {[%emt 0:04:44]} (23. e3 $142) 23... Qxc5 {[%emt 0:00:15]} 24. Bd5 {[%emt 0:00:07]} Rbd8 {[%emt 0:01:54]} (24... Bc8 $16) 25. e3 {[%emt 0:01:44]} Rd7 {[%emt 0:00:24]} 26. Qb3 {[%emt 0:00:20]} Re7 {[%emt 0:00:17]} (26... Rc7 $16 {might work better.} 27. f4 Qc3 28. Qxc3 Rxc3) 27. f4 {[%emt 0:00:23]} g6 {[%emt 0:00:18]} (27... Rc7 $16 28. Ra2 Qc3 29. Qxc3 Rxc3) 28. h4 {[%emt 0:00:58]} Kg7 {[%emt 0:00:08]} 29. Ra2 {[%emt 0:00:22]} Qa7 {[%emt 0:00:26]} 30. Kh2 {[%emt 0:00:20]} f6 {[%emt 0:00:01]} 31. exf6+ {[%emt 0:01:03]} Rxf6 {[%emt 0:00:04]} 32. Ne4 {[%emt 0:00:11]} Rf8 {[%emt 0:00:29]} 33. Rxa3 {[%emt 0:00:54]} bxa3 {[%emt 0:00:01]} 34. Qxa3 {[%emt 0:01:17] And now Ra1 would win. Chess con chili.} h5 $2 {[%emt 0:01:54]} (34... Bc8 35. Qc3+ Kh7) 35. Ra1 $18 {[%emt 0:00:00]} Rd8 {[%emt 0:01:11]} 36. Qc3+ {[%emt 0:00:11]} (36. Qxa6 Qxa6 37. Rxa6 Rxd5 $17) 36... Kh6 {[%emt 0:00:10]} 37. Ra5 $2 {[%emt 0:00:39]} (37. Qf6 $18 {[%cal Of4f5] Intending f5! and mate.} Rxd5 38. Rxa6 Qxa6 39. Qxa6 Rxe4 40. Qf6 Rd2+ 41. Kh3) 37... Qb6 $14 {[%emt 0:00:46]} (37... Rxd5 $2 {[#]} 38. g4 $1 (38. Rxd5 Rxe4 39. g4 Re8 $16) 38... Rd4 39. g5+ (39. Qxd4 Qxd4 40. g5+ Kg7 $11) 39... Kh7 40. Nf6+ (40. Qxd4 Qxd4 41. exd4 Rxe4 $11) 40... Kg7 41. Nd5 $18) 38. Ng5 {[%emt 0:00:38]} (38. Bc6 Re6 39. Bd5 Re7 $16) (38. Qf6 $1 $14 Qxf6 39. Nxf6) 38... Rxe3 {[%emt 0:00:54] The position is equal.} 39. Nf7+ {[%emt 0:00:12]} Kh7 {[%emt 0:00:02]} 40. Ng5+ {[%emt 0:00:00]} Kh6 {[%emt 0:00:00]} 41. Nf7+ {[%emt 0:01:58]} Kh7 {[%emt 0:02:06] Weighted Error Value: White=0.42/Black=0.39} 1/2-1/2